Cogmind - Beta 14 @@@ ROGUE MODE // 2025.04.25 @ 23:11:51 Player: Sweaty Result: Destroyed by Y-45 Defender with Beam Rifle Performance ------------- Evolutions (1) 500 Regions Visited (4) 800 Robots Destroyed (53) 265 Value Destroyed (1297) 1297 Prototype IDs (0) 0 Alien Tech Used (0) 0 Bonus (265) 265 TOTAL SCORE: 3127 Bonus ------- High Alert Combat Kills 100 Follower Combat Kills 165 Cogmind --------- Core Integrity 0/400 Matter 241/300 Energy 100/100 System Corruption 2% Temperature Cool (15) Movement Core (350) Ox6 Location -9/Storage Parts ------- > --- POWER (1) -------- (None) > --- PROPULSION (4) --- (None) > --- UTILITY (2) ------ Large Storage Unit Improved Targeting Computer > --- WEAPON (2) ------- (None) > --- INVENTORY (15) --- Improved Heat Sink Medium Storage Unit Improved Targeting Computer Hacking Suite Peak State ------------ > --- POWER ------------ Light Nuclear Core > --- PROPULSION ------- Titanium Leg Titanium Leg Titanium Leg Titanium Leg > --- UTILITY ---------- Small Storage Unit Improved Targeting Computer > --- WEAPON ----------- Heavy Assault Rifle Minigun > --- INVENTORY -------- Improved Ion Engine Carbon-fiber Leg Carbon-fiber Leg Carbon-fiber Leg Improved Heat Sink Autogun Rocket Launcher [Rating: 24] Favorites ----------- Power Improved Ion Engine Engine Improved Ion Engine Power Core Light Nuclear Core Propulsion Titanium Leg Treads Light Treads Leg Titanium Leg Utility Small Storage Unit Device Structural Scanner Storage Small Storage Unit Processor Targeting Computer Weapon Assault Rifle Energy Gun Beam Rifle Ballistic Gun Assault Rifle Launcher Rocket Launcher Build | -11 -10 -10 -9 -9 ------- Run | Yrd Mat Min Mat Sto Slots Evolved 2 | . . . 2 . Power . | . . . . . Propulsion 2 | . . . 2 . Utility . | . . . . . Weapon . | . . . . . Parts Attached 48 | 6 2 4 27 9 Power 5 | 1 . 1 3 . Engine 3 | 1 . . 2 . Core 2 | . . 1 1 . Reactor . | . . . . . Propulsion 13 | 2 . . 7 4 Treads 4 | 2 . . 2 . Leg 9 | . . . 5 4 Wheel . | . . . . . Hover . | . . . . . Flight . | . . . . . Utility 5 | 1 2 . 2 . Device 1 | . 1 . . . Storage 2 | 1 . . 1 . Processor 2 | . 1 . 1 . Hackware . | . . . . . Protection . | . . . . . Artifact . | . . . . . Weapon 25 | 2 . 3 15 5 Energy Gun 1 | . . . 1 . Energy Cannon . | . . . . . Ballistic Gun 17 | 2 . 3 8 4 Ballistic Cannon . | . . . . . Launcher 7 | . . . 6 1 Special Weapon . | . . . . . Impact Weapon . | . . . . . Slashing Weapon . | . . . . . Piercing Weapon . | . . . . . Special Melee Weapon . | . . . . . Unidentified Prototypes . | . . . . . Parts Lost 12 | . . . 3 9 Power 2 | . . . 1 1 Propulsion 4 | . . . . 4 Utility . | . . . . . Weapon 6 | . . . 2 4 Highest Loss Streak 5 | . . . 1 5 To Critical Strikes . | . . . . . Average Slot Usage (%) 97 | . 98 100 98 85 Engine 7 | . 14 1 7 9 Core 4 | . . 12 3 . Treads 15 | . 28 28 7 . Leg 19 | . . . 35 34 Storage 12 | . 14 14 11 11 Processor 11 | . 8 14 11 11 Energy Gun 1 | . . . . 9 Ballistic Gun 22 | . 28 28 19 9 Peak Build Rating 24 | 6 7 13 24 23 Average Rating 15 | 3 6 11 20 18 On Entrance 9 | . 6 7 11 23 Naked Turns . | . . . . . Heaviest Build 34 | 12 13 16 33 34 Greatest Support 80 | 40 40 40 80 68 Greatest Overweight (x) 7 | 1 . . 1 7 Average Overweight (x) . | . . . . . Largest Inventory Capacity 15 | 8 8 8 15 15 Average Capacity 9 | 7 8 8 10 15 Most Carried 9 | 6 4 8 9 9 Average Carried 6 | 2 2 7 6 7 Final Capacity 15 | 8 8 8 15 15 Final Carried 9 | 2 4 8 9 4 Class Distribution -------------------- 100% | Mutant Dominant Class ---------------- Mutant | -10/Materials Mutant | -10/Mines Mutant | -9/Materials Mutant | -9/Storage Resources | -11 -10 -10 -9 -9 ----------- Run | Yrd Mat Min Mat Sto Matter Collected 1393 | 158 193 135 725 182 Remotely . | . . . . . Salvage Created 1461 | . 193 78 947 243 Parts 100 | . 17 5 55 23 Haulers Intercepted 2 | . . . 2 . Recyclers Shooed 1 | . . . 1 . Parts Field Recycled . | . . . . . Retrieved Matter . | . . . . . Parts Self-Destructed . | . . . . . Prevented . | . . . . . Kills | -11 -10 -10 -9 -9 ------- Run | Yrd Mat Min Mat Sto Combat Hostiles Destroyed 42 | . 6 2 26 8 Guns 27 | . 6 2 15 4 AOE 15 | . . . 11 4 Classes Destroyed 10 | . 3 2 5 . Worker 3 | . . 1 2 . Hauler 2 | . . . 2 . Recycler 1 | . . . 1 . Mechanic 1 | . . . 1 . Operator 1 | . . . 1 . Watcher 3 | . 1 . 1 1 Swarmer 17 | . 3 1 9 4 Grunt 12 | . 3 . 8 1 Brawler 1 | . . . 1 . Sentry 12 | . . 1 8 3 Best Kill Streak 7 | . 3 2 7 6 Combat Bots Only 6 | . 3 1 5 6 Max Kills in Single Turn 3 | . 1 1 3 3 Gunslinging . | . . . . . Exploded 3 | . . . 2 3 Melee . | . . . . . Uniques/NPCs Destroyed . | . . . . . Combat | -11 -10 -10 -9 -9 -------- Run | Yrd Mat Min Mat Sto Hostile Shots Fired 276 | . 31 25 126 94 Missed 79 | . 9 9 42 19 Damage Taken 2609 | . 224 147 1294 944 Core 509 | . 53 50 105 301 Absorbed by Shields . | . . . . . Core Remaining (%) 79 | 100 . 58 . . Volleys Fired 119 | . 21 9 66 23 Largest 2 | . 2 2 2 2 Hottest 89 | . 40 48 89 89 Shots Fired 202 | . 42 16 102 42 Gun 176 | . 42 16 78 40 Cannon . | . . . . . Launcher 26 | . . . 24 2 Special . | . . . . . Kinetic 157 | . 42 16 76 23 Thermal 19 | . . . 2 17 Explosive 26 | . . . 24 2 Electromagnetic . | . . . . . Robot Hit Streak 16 | . 9 3 15 16 Robot Miss Streak 4 | . 2 1 2 4 Penetration Max . | . . . . . Secondary Targets 2 | . 2 . . . Max Gunslinging Chain 1 | . 1 . . . Shots Hit Robots 134 | . 31 11 71 21 Core Hits 71 | . 10 4 47 10 Critical Kills . | . . . . . Critical Parts Destroyed . | . . . . . Critical Strikes 3 | . . . 1 2 Burn 2 | . . . . 2 Destroy 1 | . . . 1 . Melee Attacks . | . . . . . Impact . | . . . . . Slashing . | . . . . . Piercing . | . . . . . Sneak Attacks . | . . . . . Combat Hostiles . | . . . . . Follow-up Attacks . | . . . . . Damage Inflicted 3216 | . 402 191 2010 613 Guns 1789 | . 401 189 865 334 Cannons . | . . . . . Explosions 1417 | . . . 1138 279 Melee . | . . . . . Ramming 10 | . 1 2 7 . Kinetic 1616 | . 401 189 836 190 Thermal 173 | . . . 29 144 Explosive 1417 | . . . 1138 279 Electromagnetic . | . . . . . Impact . | . . . . . Slashing . | . . . . . Piercing . | . . . . . Highest Corruption 2 | . . . 2 2 Average Corruption 2 | . . . 2 2 Corruption Purged . | . . . . . Corruption Blocked . | . . . . . Effects 9 | . . . 2 7 Message Errors 1 | . . . . 1 Matter Fused 1 | . . . . 1 Heat Flow Errors 2 | . . . . 2 Energy Discharges 1 | . . . 1 . Parts Rejected 1 | . . . . 1 Parts Fused 1 | . . . . 1 Data Loss (minor) 1 | . . . 1 . Weapon Failures 1 | . . . . 1 Overload Shots . | . . . . . Overflow Damage 80 | . . . 37 43 Projectiles . | . . . . . Explosions 80 | . . . 37 43 Melee . | . . . . . Knockbacks . | . . . . . Impact . | . . . . . Kinetic . | . . . . . Secondary . | . . . . . Self-Inflicted Damage 139 | . . . 139 . Shots 7 | . . . 7 . Rammed 3 | . 1 1 1 . Targets Rammed 6 | . 2 1 3 . Kicked 2 | . . . 2 . Crushed 1 | . 1 . . . Highest Temperature 261 | . 2 24 33 261 Average Temperature 49 | . 2 11 7 96 Received Heat Transfer 861 | . 96 9 363 393 Effects 1 | . . . . 1 Interference 1 | . . . . 1 Siege Activations . | . . . . . Robots Corrupted . | . . . . . Combat Hostiles . | . . . . . Parts Fried . | . . . . . Impact Corruptions . | . . . . . Robots Melted . | . . . . . Combat Hostiles . | . . . . . Parts Melted 3 | . . . . 3 Heat Transferred 592 | . . . 74 518 Parts Sabotaged . | . . . . . Parts Stolen . | . . . . . Parts Stripped . | . . . . . Power Chain Reactions . | . . . . . Alert | -11 -10 -10 -9 -9 ------- Run | Yrd Mat Min Mat Sto Peak Influence 653 | . 117 171 653 499 Initial 258 | . . 45 24 258 Average 216 | . 47 93 317 424 Maximum Alert Level 2 | . . . 2 2 Low Security (%) 55 | 100 100 100 23 . Level 1 24 | . . . 50 23 Level 2 19 | . . . 26 76 Level 3 . | . . . . . Level 4 . | . . . . . Level 5 . | . . . . . High Security . | . . . . . Max Security . | . . . . . Squads Dispatched 8 | . 1 2 3 2 Investigation 2 | . . 1 1 . Extermination . | . . . . . Reinforcement 5 | . 1 . 2 2 Assault 1 | . . 1 . . Garrison . | . . . . . Intercept . | . . . . . Searches Triggered . | . . . . . Construction Impeded . | . . . . . Haulers Reinforced . | . . . . . Active Scanning Responses . | . . . . . Cargo Convoy Interrupts . | . . . . . Stealth | -11 -10 -10 -9 -9 --------- Run | Yrd Mat Min Mat Sto Distress Signals 5 | . 1 . 2 2 Communications Jammed . | . . . . . Distress Signals . | . . . . . Times Spotted 73 | . 13 9 35 16 Peak Tracking Total 6 | . 4 3 5 6 Tactical Retreats 3 | . . 1 2 . Traps | -11 -10 -10 -9 -9 ------- Run | Yrd Mat Min Mat Sto Traps Triggered 3 | . . . 1 2 Indirectly . | . . . . . Trap Hack Attempts . | . . . . . Triggered . | . . . . . Disarmed . | . . . . . Reprogrammed . | . . . . . Reused . | . . . . . Traps Extracted . | . . . . . Installed . | . . . . . Triggered . | . . . . . Machines | -11 -10 -10 -9 -9 ---------- Run | Yrd Mat Min Mat Sto Machines Disabled 4 | . . . 4 . Max in Single Turn 2 | . . . 2 . Machines Repaired . | . . . . . Machines Dismantled . | . . . . . Machines Sabotaged . | . . . . . Overloaded Fab Kills . | . . . . . Hacking | -11 -10 -10 -9 -9 --------- Run | Yrd Mat Min Mat Sto Machines Accessed 5 | . 1 1 2 1 Terminals 3 | . 1 . 1 1 Fabricators . | . . . . . Repair Stations 1 | . . . 1 . Recycling Units . | . . . . . Scanalyzers . | . . . . . Garrison Access . | . . . . . Total Hacks 10 | . 1 1 5 3 Successful 5 | . 1 1 2 1 Failed 5 | . . . 3 2 Catastrophic 1 | . . . 1 . Database Lockouts . | . . . . . Manual 2 | . 1 . 1 . Terminals 6 | . 1 . 2 3 Fabricators . | . . . . . Repair Stations 3 | . . . 3 . Recycling Units . | . . . . . Scanalyzers . | . . . . . Garrison Access . | . . . . . Terminal Hacks 4 | . 1 1 1 1 Record 1 | . . . . 1 Open Door 1 | . . 1 . . Alert Level 1 | . . . 1 . Zone Layout 1 | . 1 . . . Fabricator Hacks . | . . . . . Repair Station Hacks 1 | . . . 1 . Scan Component 1 | . . . 1 . Recycling Unit Hacks . | . . . . . Scanalyzer . | . . . . . Garrison Access Hacks . | . . . . . Unauthorized Hacks . | . . . . . Terminals . | . . . . . Fabricators . | . . . . . Repair Stations . | . . . . . Recycling Units . | . . . . . Scanalyzers . | . . . . . Garrison Access . | . . . . . Data Cores Recovered 1 | . . . 1 . Used . | . . . . . Hacking Detections 2 | . . . 1 1 Full Trace Events 1 | . . . 1 . Feedback Events . | . . . . . Feedback Blocked . | . . . . . Robot Schematics Acquired . | . . . . . Robots Built . | . . . . . Authchips . | . . . . . Time . | . . . . . Total Robot Build Rating . | . . . . . Part Schematics Acquired . | . . . . . Parts Built . | . . . . . Authchips . | . . . . . Time . | . . . . . Total Part Build Rating . | . . . . . Parts Repaired . | . . . . . Time . | . . . . . Parts Recycled . | . . . . . Recycled Matter . | . . . . . Retrieved Matter . | . . . . . Retrieved Components . | . . . . . Parts Scanalyzed . | . . . . . Part Schematics Acquired . | . . . . . Parts Damaged . | . . . . . Bothacking | -11 -10 -10 -9 -9 ------------ Run | Yrd Mat Min Mat Sto Used RIF Installer . | . . . . . Robots Hacked . | . . . . . Non-combat . | . . . . . Combat . | . . . . . Robot Hacks Applied . | . . . . . Relay Couplers Released . | . . . . . Fabnet Peak Effective % . | . . . . . Robots Rewired . | . . . . . Allies Hacked . | . . . . . Hacks Repelled . | . . . . . Allies | -11 -10 -10 -9 -9 -------- Run | Yrd Mat Min Mat Sto Total Allies 4 | . . 4 . . Largest Group 4 | . . 4 1 . Highest-Rated Group 71 | . . 71 16 . Highest-Rated Ally 31 | . . 31 16 . Total Orders . | . . . . . Ally Attacks 33 | . . 26 7 . Total Damage 376 | . . 315 61 . Kills 7 | . . 7 . . Allies Corrupted . | . . . . . Allies Melted . | . . . . . Intel | -11 -10 -10 -9 -9 ------- Run | Yrd Mat Min Mat Sto Robot Analysis Total . | . . . . . Derelict Logs Recovered 2 | . . 2 . . Drone Launches . | . . . . . Drone Recoveries . | . . . . . Exploration | -11 -10 -10 -9 -9 ------------- Run | Yrd Mat Min Mat Sto Turns Passed 2791 | 52 547 669 1221 302 Spaces Moved 1363 | 36 168 393 606 160 Core 24 | 18 . . . 6 Treads 675 | 18 168 393 96 . Legs 664 | . . . 510 154 Wheels . | . . . . . Hover . | . . . . . Flight . | . . . . . Fastest Speed 50 | 50 160 160 125 120 Average Speed 144 | 109 160 160 135 135 Slowest Speed 400 | 160 160 160 190 400 Overloaded Moves . | . . . . . Propulsion Burnouts . | . . . . . Robots Hopped . | . . . . . Cave-ins Triggered . | . . . . . Exploration Rate (%) 40 | 4 38 86 40 33 Regions Visited 4 Branch Regions 2 Pre-discovered Areas . | . . . . . Known Exits Taken . | . . . . . Unknown Exits Taken 4 | 1 1 1 1 . Scrap Searched . | . . . . . Spaces Dug 57 | . . . 57 . Terrain Destroyed 241 | . . . 226 15 Melee . | . . . . . Projectile . | . . . . . AOE 241 | . . . 226 15 Terrain Rammed . | . . . . . Walls Destroyed . | . . . . . Machines Disabled . | . . . . . Actions | -11 -10 -10 -9 -9 --------- Run | Yrd Mat Min Mat Sto Total 1988 | 48 403 419 913 205 Wait 404 | . 208 . 186 10 Move 1359 | 35 167 392 605 160 Hop . | . . . . . Pick Up 35 | 7 3 8 14 3 Fast Attach 4 | 1 . . 3 . Attach 22 | 5 1 . 8 8 Detach 1 | . . . 1 . Swap 22 | . 1 4 16 1 Drop 16 | . . 5 11 . Fire 119 | . 21 9 66 23 Melee . | . . . . . Ram . | . . . . . Kick 2 | . . . 2 . Crush 4 | . 2 1 1 . Escape Stasis . | . . . . . Rewire . | . . . . . Trap . | . . . . . Miscellaneous . | . . . . . Route ------- -11/Scrapyard -10/Materials (discovered 2 exits: *Mat / *Min) -10/Mines -9/Materials -9/Storage (discovered 1 exit: Rec) History --------- Turn | Location | Event 9 | -11/Scrapyard | Discovered new exit (range 15) 53 | -11/Scrapyard | Entered Materials 205 | -10/Materials | Discovered new exit (range 7) 317 | -10/Materials | Build established: Mutant 586 | -10/Materials | Discovered new exit (range 10) 600 | -10/Materials | Entered Mines 601 | -10/Mines | Met a Derelict testing a Signal Generator 605 | -10/Mines | Found Signal Generator 636 | -10/Mines | Assisted by bots powering up and referring to "LRC-V3" 677 | -10/Mines | Met a Derelict shopkeep closing up shop 764 | -10/Mines | Learned Materials terminal intel 997 | -10/Mines | Found a hidden stash of uninstalled traps 1243 | -10/Mines | Discovered new exit (range 11) 1254 | -10/Mines | Received a Rocket Launcher from a helpful Derelict 1269 | -10/Mines | Entered Materials 1269 | -9/Materials | Accompanied by 1 ally 1269 | -9/Materials | Evolved 2 slots: Propulsion x2 1270 | -9/Materials | Loaded intel: 12 terminal locations 2461 | -9/Materials | Discovered new exit (range 8) 2490 | -9/Materials | Entered Storage 2491 | -9/Storage | Identified exit to Recycling 2611 | -9/Storage | Lost 3 parts (2n1w) 2770 | -9/Storage | Core integrity fell below 50% 2786 | -9/Storage | Core integrity fell below 20% 2792 | -9/Storage | Destroyed by Y-45 Defender with Beam Rifle Last Messages --------------- 02748_ Imp. Ion Engine destroyed. 02751_ Triggered Blade Trap. 02751_ Massive razor-sharp blades shoot up from within the floor. 02751_ Beam Rifle severed. 02751_ Carbon-fiber Leg severed. 02751_ U-05 Engineer lays Concrete. 02752_ Autogun destroyed. 02764_ System corrupted: Hvy. Assault Rifle fused. 02767_ Aluminum Leg destroyed. 02767_ Hvy. Assault Rifle destroyed. 02770_ Critical hit (Burn: +37). 02771_ Hvy. Assault Rifle destroyed. 02773_ R-06 Scavenger collects Beam Rifle. 02773_ R-06 Scavenger collects Carbon-fiber Leg. 02777_ R-06 Scavenger collects Titanium Leg. 02780_ R-06 Scavenger collects Carbon-fiber Leg. 02784_ System corrupted: Matter fused (-9). Map ----- +----------------------------------------------------+ | ??????????????????### #?????????? | | ???????????????????## = #?????????? | | ????????????????????# ####### ########### | | ????????????????????###+###?????#% # # | | ???????????????????????????????## # """ # | | ???????????????????????????????#T # "?"""" # | | ???????????????????????????????## # "????" # | | ????????????????????????????????# + "????" # | | ????????????????????????????????# # """"?" # | | ????????????????????????????????# # """ # | | ????????????????????????????????# + # | | ????????????????????????????????# ########### | | ????????????????????????????????# #??####???? | | ???????????????????????########## #??"""#???? | | ???????????????????????# # #??"R"#???? | | ???????????????????????# ! "" # ###" "####? | | ???????????????????????# T" # # #? | | ???????????????????????# "" + # #? | | ???????????????????????# !! # # """ #? | | ???????????????????????# ! """ # # """ #? | | ???????????????????????# """ + + """ #? | | ???????????????????????# """ # # """ #? | | ???????????????????????# # # """ #? | | ???????????????????????########## # #? | | ???????????????????????# [ u! + # #? | | ???????????????????????#!@ r# #####+####? | | ???????????????????????# g # #?????????? | | ???????????????????????###g##+## #?????????? | | ?????????????????????????#Y ##/#?????????? | | ????????????????# ###### # = !#?????? | | ??????????? + +?????? | | ????????????????# ############ #] #?????? | | ???????????????????????????????# # ! % #?????? | | ???????????????????????????????+ # #?????? | | ???????????????????????????????# # #?????? | | ???????????????????????????????# #####+##?????? | | ???????????????????????????????# ????????????? | | ???????????????????????????????? ????????????? | | ???????????????????????????????? ????????????? | | ???????????????????????????????? ????????????? | | ????????????????????????????????##????????????? | | ??????????????????????????????????????????????? | | ??????????????????????????????????????????????? | | ??????????????????????????????????????????????? | | | | | | | | | | | | | +----------------------------------------------------+ Best States ------------- Heat Dissipation 28 Energy Generation 14 Energy Capacity 265 Matter Stores 300 Matter Capacity 300 Sight Range 16 Terrain Scan Density 10 Evasion (%) 55 Targeting Accuracy 6 Recoil Reduction 4 Item Schematics ----------------- None Robot Schematics ------------------ None Fabricated ------------ Nothing Alien Tech Used ----------------- None Achievements -------------- None Challenges ------------ None Game ------ Seed CannonBoreCapacitor Manual? 0 Play Time 00:24:42 Cumulative 10.3 hours Start 2025.04.25 @ 22:47:27 End 2025.04.25 @ 23:11:51 Sessions 1 Manual Loads 0 Difficulty Rogue Special Mode None Game No. 15 Rogue 15 Adventurer 0 Explorer 0 Win Type - Total 0 Types 0/0/0/0/0/0/0/0/0 Lore% 3 Gallery% 14 Achievement% 14 Wizard Run 0 Options --------- Layout 1 ASCII 0 Keyboard 0 Movement Mouse Keybinds 0 Fullscreen 1 Font 24/Smallcaps Map View 50x35 Zoom Use 0% Tactical HUD 1 Map Filters NONE Filters NONE Steam 1 RUN: e7c87e04-eb7a-448e-a13e-1b606a30a64a